fUST/lending_fUST_20251222
["ID","MTS","AMOUNT","RATE_DAILY","PERIOD"]
[399475554,1766403038936,-250.0,9.396e-05,2]
[399475555,1766403038946,-217.47493711,9.396e-05,2]
[399475556,1766403038955,-152.31149464,9.396e-05,2]
[399475557,1766403038965,-201.93286099,9.396e-05,2]
[399475558,1766403038975,-152.54695802,9.396e-05,2]
[399475559,1766403038984,-500.0,9.448e-05,2]
[399475560,1766403038995,-500.0,9.448e-05,2]
[399475561,1766403039005,-500.0,9.448e-05,2]
[399475562,1766403039015,-213.92678941,9.448e-05,2]
[399475563,1766403039024,-500.0,9.448e-05,2]
[399475564,1766403039038,-150.0,9.448e-05,2]
[399475565,1766403039048,-171.6560795,9.448e-05,2]
[399475566,1766403039057,-500.0,9.448e-05,2]
[399475567,1766403039067,-150.0,9.448e-05,2]
[399475568,1766403039077,-500.0,9.448e-05,2]
[399475569,1766403039087,-500.0,9.448e-05,2]
[399475570,1766403039096,-474.06,9.581e-05,2]
[399475571,1766403039107,-500.0,9.585e-05,2]
[399475572,1766403039116,-647.05014813,9.585e-05,2]
[399475573,1766403039126,-500.0,9.585e-05,2]
[399475574,1766403039135,-500.0,9.585e-05,2]
[399475575,1766403039144,-150.0,9.585e-05,2]
[399475576,1766403039154,-500.0,9.585e-05,2]
[399475577,1766403039163,-150.0,9.585e-05,2]
[399475578,1766403039173,-500.0,9.585e-05,2]
[399475579,1766403039183,-500.0,9.585e-05,2]
[399475580,1766403039192,-974.68119452,9.654e-05,2]
[399475581,1766403039202,-36086.987821,9.705e-05,2]
[399475582,1766403039211,-532.9066056,9.707e-05,2]
[399475583,1766403039221,-3417.0054135,9.707e-05,2]
[399475584,1766403039230,-705.1146621,9.707e-05,2]
[399475585,1766403039240,-3201.5374019,9.707e-05,2]
[399475586,1766403039250,-4499.4986613,9.707e-05,2]
[399475587,1766403039259,-3416.270888,9.707e-05,2]
[399475588,1766403039268,-500.0,9.722e-05,2]
[399475589,1766403039277,-500.0,9.722e-05,2]
[399475590,1766403039287,-500.0,9.722e-05,2]
[399475591,1766403039296,-150.0,9.722e-05,2]
[399475592,1766403039306,-457.83953985,9.722e-05,2]
[399475593,1766403039316,-163.34008304,9.722e-05,2]
[399475594,1766403039326,-333.12245302,9.722e-05,2]
[399475595,1766403039335,-500.0,9.722e-05,2]
[399475596,1766403039345,-656.3351375,9.742e-05,2]
[399475597,1766403039354,-151.0,9.742e-05,2]
[399475598,1766403039364,-151.0,9.742e-05,2]
[399475599,1766403039374,-151.0,9.742e-05,2]
[399475600,1766403039383,-151.0,9.742e-05,2]
[399475601,1766403039393,-151.0,9.742e-05,2]
[399475602,1766403039402,-151.0,9.742e-05,2]
[399475603,1766403039411,-151.0,9.742e-05,2]
[399475604,1766403039421,-151.0,9.742e-05,2]
[399475605,1766403039430,-151.0,9.742e-05,2]
[399475606,1766403039439,-151.0,9.742e-05,2]
[399475607,1766403039448,-151.0,9.742e-05,2]
[399475608,1766403039457,-151.0,9.742e-05,2]
[399475609,1766403039468,-209.49912049,9.742e-05,2]
[399475610,1766403039478,-500.0,9.859e-05,2]
[399475611,1766403039487,-500.0,9.859e-05,2]
[399475612,1766403039497,-500.0,9.859e-05,2]
[399475613,1766403039506,-150.0,9.859e-05,2]
[399475614,1766403039515,-593.30213358,9.859e-05,2]
[399475615,1766403039525,-2041.90639806,9.899e-05,2]
[399475616,1766403039534,-574.12855637,9.944e-05,2]
[399475617,1766403039544,-211.00578862,9.944e-05,2]
[399475618,1766403039553,-500.0,9.996e-05,2]
[399475619,1766403039563,-500.0,9.996e-05,2]
[399475620,1766403039572,-500.0,9.996e-05,2]
[399475621,1766403039581,-200.20421406,9.996e-05,2]
[399475622,1766403039590,-632.08,9.998e-05,2]
[399475623,1766403039600,-821.84740598,0.0001,2]
[399475624,1766403039610,-150.5,0.00010026,2]
[399475625,1766403039619,-187.11872692,0.00010091,2]
[399475626,1766403039629,-500.0,0.00010133,2]
[399475627,1766403039638,-500.0,0.00010133,2]
[399475628,1766403039648,-500.0,0.00010133,2]
[399475629,1766403039658,-160.0,0.00010152,2]
[399475630,1766403039668,-1041.66666667,0.00010152,2]
[399475631,1766403039677,-2041.90639806,0.00010208,2]
[399475632,1766403039687,-500.0,0.0001027,2]
[399475633,1766403039696,-500.0,0.0001027,2]
[399475634,1766403039705,-225.50050397,0.0001027,2]
[399475635,1766403039715,-500.0,0.00010407,2]
[399475636,1766403039724,-500.0,0.00010407,2]
[399475637,1766403039734,-790.1,0.00010414,2]
[399475638,1766403039743,-324.88942306,0.00010428,2]
[399475639,1766403039752,-633.0,0.00010458,2]
[399475640,1766403039762,-2159.0,0.00010458,2]
[399475641,1766403039771,-1367.256,0.00010458,2]
[399475642,1766403039780,-416.625,0.00010458,2]
[399475643,1766403039790,-150.342,0.00010483,2]
[399475644,1766403039801,-150.35,0.00010483,2]
[399475645,1766403039810,-2041.90639806,0.00010487,2]
[399475646,1766403039820,-595.37131296,0.00010492,2]
[399475647,1766403039830,-500.0,0.00010544,2]
[399475648,1766403039839,-284.37643291,0.00010544,2]
[399475658,1766403043335,-215.62356709,0.00010544,2]
[399475660,1766403043345,-500.0,0.00010681,2]
[399475661,1766403043354,-500.0,0.00010681,2]
[399475662,1766403043363,-192.8756158,0.00010685,2]
[399475664,1766403043371,-192.8756158,0.00010685,2]
[399475665,1766403043380,-192.8756158,0.00010685,2]
[399475666,1766403043390,-192.8756158,0.00010685,2]
[399475667,1766403043400,-192.8756158,0.00010685,2]
[399475668,1766403043641,-192.8756158,0.00010685,2]
[399475669,1766403043659,-192.8756158,0.00010685,2]
[399475670,1766403043670,-192.8756158,0.00010685,2]
[399475671,1766403043680,-192.8756158,0.00010685,2]
[399475672,1766403043689,-192.8756158,0.00010685,2]
[399475673,1766403043698,-192.8756158,0.00010685,2]
[399475674,1766403043707,-192.8756158,0.00010685,2]
[399475675,1766403043716,-192.8756158,0.00010685,2]
[399475676,1766403043725,-192.8756158,0.00010685,2]
[399475677,1766403043734,-192.8756158,0.00010685,2]
[399475678,1766403043744,-192.8756158,0.00010685,2]
[399475679,1766403043754,-192.8756158,0.00010685,2]
[399475680,1766403043763,-500.0,0.00010818,2]
[399475681,1766403043772,-500.0,0.00010818,2]
[399475682,1766403043781,-948.12,0.00010831,2]
[399475683,1766403043790,-2041.90639806,0.00010877,2]
[399475684,1766403043800,-1003.9738568,0.00010943,2]
[399475685,1766403043809,-762.2730703,0.00010943,2]
[399475686,1766403043819,-500.0,0.00010955,2]
[399475687,1766403043828,-500.0,0.00010955,2]
[399475688,1766403043838,-500.0,0.00010958,2]
[399475689,1766403043847,-500.0,0.00010958,2]
[399475690,1766403043856,-500.0,0.00010958,2]
[399475691,1766403043864,-500.0,0.00010958,2]
[399475692,1766403043874,-500.0,0.00010958,2]
[399475693,1766403043883,-500.0,0.00010958,2]
[399475694,1766403043892,-500.0,0.00010958,2]
[399475695,1766403043901,-500.0,0.00010958,2]
[399475696,1766403043911,-500.0,0.00010958,2]
[399475697,1766403043920,-500.0,0.00010958,2]
[399475698,1766403043931,-999.0,0.00010959,2]
[399475699,1766403043942,-500.0,0.00010959,2]
[399475700,1766403043951,-271.72826689,0.00010959,2]
[399475701,1766403043961,-500.0,0.00010959,2]
[399475702,1766403043970,-500.0,0.00010959,2]
[399475703,1766403043979,-617.40005154,0.0001104,2]
[399475704,1766403043990,-197.04903779,0.00011049,2]
[399475705,1766403043999,-500.0,0.00011092,2]
[399475706,1766403044008,-500.0,0.00011092,2]
[399475707,1766403044017,-2041.90639806,0.00011211,2]
[399475708,1766403044030,-170.1226821,0.00011219,2]
[399475709,1766403044042,-159.3951615,0.00011219,2]
[399475710,1766403044052,-224.0168474,0.00011219,2]
[399475711,1766403044061,-170.0861122,0.00011219,2]
[399475712,1766403044071,-500.0,0.00011229,2]
[399475713,1766403044080,-362.74105409,0.00011229,2]
[399475714,1766403044090,-1106.13,0.00011248,2]
[399475715,1766403044100,-500.0,0.00011366,2]
[399475716,1766403044109,-2041.90639806,0.00011466,2]
[399475717,1766403044119,-426.56375069,0.00011503,2]
[399475718,1766403044129,-192.8756158,0.00011507,2]
[399475719,1766403044139,-192.8756158,0.00011507,2]
[399475720,1766403044149,-192.8756158,0.00011507,2]
[399475721,1766403044158,-538.3356531,0.00011507,2]
[399475722,1766403044167,-166.6925053,0.00011507,2]
[399475723,1766403044176,-678.39645296,0.00011588,2]
[399475724,1766403044187,-1264.15,0.00011664,2]
[399475725,1766403044197,-500.0,0.00011925,2]
[399475726,1766403044208,-1422.17,0.00012081,2]
[399475727,1766403044217,-500.0,0.00012328,2]
[399475728,1766403044226,-3717.57,0.00012329,2]
[399475729,1766403044235,-3097.97,0.00012329,2]
[399475730,1766403044244,-2581.64,0.00012329,2]
[399475731,1766403044253,-2151.37,0.00012329,2]
[399475732,1766403044263,-1792.81,0.00012329,2]
[399475733,1766403044271,-1494.01,0.00012329,2]
[399475734,1766403044280,-1245.0,0.00012329,2]
[399475735,1766403044289,-1037.5,0.00012329,2]
[399475736,1766403044300,-864.59,0.00012329,2]
[399475737,1766403044309,-720.49,0.00012329,2]
[399475738,1766403044318,-600.41,0.00012329,2]
[399475739,1766403044327,-500.34,0.00012329,2]
[399475740,1766403044336,-416.95,0.00012329,2]
[399475741,1766403044345,-347.46,0.00012329,2]
[399475742,1766403044355,-289.55,0.00012329,2]
[399475743,1766403044364,-241.29,0.00012329,2]
[399475744,1766403044373,-201.07,0.00012329,2]
[399475745,1766403044383,-167.56,0.00012329,2]
[399475746,1766403044391,-837.84,0.00012329,2]
[399475747,1766403044401,-500.0,0.00012356,2]
[399475748,1766403044411,-500.0,0.00012367,2]
[399475749,1766403044421,-374.44882658,0.00012428,2]
[399475750,1766403044430,-1580.19,0.00012497,2]
[399475751,1766403044440,-6807.67719649,0.000129,2]
[399475752,1766403044450,-6807.67719643,0.000129,2]
[399475753,1766403044459,-6807.67719643,0.000129,2]
[399475754,1766403044468,-6807.67719643,0.000129,2]
[399475755,1766403044478,-373.38962054,0.000132,2]
[399475756,1766403044487,-172.624,0.00013252,2]
[399475757,1766403044496,-500.0,0.00013272,2]
[399475758,1766403044505,-2044.69893957,0.00013273,2]
[399475814,1766404232305,-4356.19804231,8.395e-05,2]
[399475817,1766404232315,-249.80195769,8.395e-05,2]
[399476016,1766404238342,-288.19804231,8.395e-05,2]
[399476017,1766404238356,-121.99195769,8.45e-05,2]
[399476023,1766404240689,-140.38469647,8.45e-05,2]
[399476024,1766404240699,-150.0,8.505e-05,2]
[399476025,1766404240708,-150.0,8.807e-05,2]
[399476026,1766404240718,-150.0,9.208e-05,2]
[399476027,1766404240727,-189.62,9.608e-05,2]
[399476028,1766404240736,-227.87013734,9.975e-05,2]
[399476029,1766404240746,-237.03,0.00010008,2]
[399476030,1766404240755,-1041.66666667,0.00010175,2]
[399476031,1766404240764,-284.43,0.00010409,2]
[399476032,1766404240773,-150.07129309,0.00010429,2]
[399476033,1766404240783,-500.0,0.00010429,2]
[399476034,1766404240792,-500.0,0.00010429,2]
[399476035,1766404240802,-500.0,0.00010429,2]
[399476036,1766404240811,-500.0,0.00010429,2]
[399476037,1766404240821,-600.80294373,0.00010429,2]
[399476038,1766404240830,-500.0,0.00010429,2]
[399476039,1766404240840,-500.0,0.00010429,2]
[399476040,1766404240850,-500.0,0.00010429,2]
[399476041,1766404240860,-476.84702303,0.00010429,2]
[399476042,1766404240869,-309.60445191,0.0001045,2]
[399476043,1766404240879,-186.42762168,0.00010467,2]
[399476044,1766404240888,-210.91383622,0.00010567,2]
[399476045,1766404240899,-747.52252101,0.00010567,2]
[399476046,1766404240909,-747.52252101,0.00010567,2]
[399476047,1766404240919,-747.52252101,0.00010567,2]
[399476048,1766404240928,-747.52252101,0.00010567,2]
[399476049,1766404240938,-747.52252101,0.00010567,2]
[399476050,1766404240947,-747.52252101,0.00010567,2]
[399476051,1766404240957,-747.52252101,0.00010567,2]
[399476052,1766404240966,-747.52252101,0.00010567,2]
[399476053,1766404240975,-747.52252101,0.00010567,2]
[399476054,1766404240986,-747.52252101,0.00010567,2]
[399476055,1766404240996,-747.52252101,0.00010567,2]
[399476056,1766404241006,-747.52252101,0.00010567,2]
[399476057,1766404241016,-747.52252101,0.00010567,2]
[399476058,1766404241025,-747.52252101,0.00010567,2]
[399476059,1766404241035,-747.52252101,0.00010567,2]
[399476060,1766404241045,-747.52252101,0.00010567,2]
[399476061,1766404241054,-747.52252101,0.00010567,2]
[399476062,1766404241064,-747.52252101,0.00010567,2]
[399476063,1766404241073,-747.52252101,0.00010567,2]
[399476064,1766404241082,-784.89864705,0.00010567,2]
[399476065,1766404241092,-784.89864705,0.00010567,2]
[399476066,1766404241102,-784.89864705,0.00010567,2]
[399476067,1766404241111,-784.89864705,0.00010567,2]
[399476068,1766404241121,-784.89864705,0.00010567,2]
[399476069,1766404241131,-784.89864705,0.00010567,2]
[399476070,1766404241141,-784.89864705,0.00010567,2]
[399476071,1766404241150,-784.89864705,0.00010567,2]
[399476072,1766404241160,-784.89864705,0.00010567,2]
[399476073,1766404241169,-784.89864705,0.00010567,2]
[399476074,1766404241180,-43261.5925685,0.00010574,2]
[399476075,1766404241189,-331.84,0.00010809,2]
[399476076,1766404241198,-2160.0,0.00010871,2]
[399476077,1766404241207,-633.0,0.00010871,2]
[399476078,1766404241216,-1362.0,0.00010871,2]
[399476079,1766404241225,-500.0,0.00010958,2]
[399476080,1766404241235,-401.04,0.00010958,2]
[399476081,1766404241244,-500.0,0.00010959,2]
[399476082,1766404241253,-500.0,0.00010959,2]
[399476083,1766404241262,-240.20978682,0.00010959,2]
[399476084,1766404241271,-155.21325355,0.00011092,2]
[399476085,1766404241281,-379.25,0.00011209,2]
[399476086,1766404241307,-159.25725166,0.00011229,2]
[399476087,1766404241316,-172.624,0.00011578,2]
[399476088,1766404241325,-426.65,0.0001161,2]
[399476089,1766404241334,-474.06,0.0001201,2]
[399476090,1766404241348,-500.0,0.00012356,2]
[399476091,1766404241357,-356.83224965,0.0001245,2]
[399476092,1766404241366,-500.0,0.00012626,2]
[399476093,1766404241376,-199.07532373,0.00012699,3]
[399476094,1766404241387,-2476.28697506,0.00012881,2]
[399476095,1766404241397,-5124.0,0.00013,10]
[399476096,1766404241406,-547.89827065,0.00013008,2]
[399476097,1766404241415,-370.49757448,0.00013273,2]
[399476098,1766404241424,-500.0,0.00013273,2]
[399476099,1766404241434,-561.79376883,0.00013273,2]
[399476100,1766404241444,-500.0,0.00013273,2]
[399476101,1766404241453,-503.39278923,0.00013273,2]
[399476102,1766404241463,-500.0,0.00013273,2]
[399476103,1766404241472,-500.0,0.00013273,2]
[399476104,1766404241481,-238.14014074,0.00013273,2]
[399476105,1766404241491,-500.0,0.00013273,2]
[399476106,1766404241500,-500.0,0.00013273,2]
[399476107,1766404241509,-500.0,0.00013273,2]
[399476108,1766404241519,-500.0,0.00013273,2]
[399476109,1766404241528,-500.0,0.00013273,2]
[399476110,1766404241537,-500.0,0.00013273,2]
[399476111,1766404241547,-158.22661987,0.00013273,2]
[399476112,1766404241556,-500.0,0.00013273,2]
[399476113,1766404241565,-500.0,0.00013273,2]
[399476114,1766404241575,-500.0,0.00013273,2]
[399476115,1766404241584,-500.0,0.00013273,2]
[399476116,1766404241593,-500.0,0.00013273,2]
[399476117,1766404241603,-500.0,0.00013273,2]
[399476118,1766404241612,-500.77732035,0.00013273,2]
[399476119,1766404241622,-5000.0,0.000135,2]
[399476120,1766404241631,-118151.30350981,0.0001358,2]
[399476168,1766404243491,-279.38385638,0.00011097,2]
[399476170,1766404243500,-35090.16047207,0.0001358,2]
[399476173,1766404243511,-29031.99653316,0.0001358,2]
[399476175,1766404243522,-58016.04252511,0.0001358,2]
[399476177,1766404243533,-500.16552,0.0001358,2]
[399476241,1766404246387,-1384.74704725,0.0001358,2]
[399476279,1766405432552,-286.84122963,8.228e-05,2]
[399476280,1766405432562,-536.0,8.228e-05,2]
[399476281,1766405432571,-218.82543704,8.285e-05,2]
[399476282,1766405432581,-50.83495,8.285e-05,2]
[399476283,1766405432590,-150.0,8.755e-05,2]
[399476284,1766405432599,-150.0,9.171e-05,2]
[399476285,1766405432608,-150.0,9.588e-05,2]
[399476286,1766405432619,-793.44137382,9.791e-05,2]
[399476287,1766405432628,-150.0,0.00010005,2]
[399476288,1766405432637,-318.19925671,0.00010285,2]
[399476289,1766405432646,-150.0,0.00010422,2]
[399476290,1766405432655,-300.0,0.00010464,2]
[399476291,1766405432664,-1200.0,0.00010464,2]
[399476292,1766405432673,-300.0,0.00010464,2]
[399476293,1766405432682,-330.76078034,0.00010465,2]
[399476294,1766405432696,-177.86699375,0.00010465,2]
[399476295,1766405432706,-1200.0,0.00010465,2]
[399476296,1766405432715,-300.0,0.00010465,2]
[399476297,1766405432724,-500.0,0.00010466,2]
[399476298,1766405432734,-500.0,0.00010466,2]
[399476299,1766405432743,-500.0,0.00010466,2]
[399476300,1766405432753,-588.10810085,0.00010466,2]
[399476301,1766405432763,-500.0,0.00010466,2]
[399476302,1766405432772,-500.0,0.00010466,2]
[399476303,1766405432781,-500.0,0.00010466,2]
[399476304,1766405432791,-213.86660586,0.00010466,2]
[399476305,1766405432800,-584.99414107,0.00010466,2]
[399476306,1766405432809,-584.99414107,0.00010466,2]
[399476307,1766405432818,-584.99414107,0.00010466,2]
[399476308,1766405432827,-584.99414107,0.00010466,2]
[399476309,1766405432836,-584.99414107,0.00010466,2]
[399476310,1766405432845,-584.99414107,0.00010466,2]
[399476311,1766405432853,-584.99414107,0.00010466,2]
[399476312,1766405432863,-584.99414107,0.00010466,2]
[399476313,1766405432872,-584.99414107,0.00010466,2]
[399476314,1766405432883,-584.99414107,0.00010466,2]
[399476315,1766405432892,-584.99414107,0.00010466,2]
[399476316,1766405432901,-584.99414107,0.00010466,2]
[399476317,1766405432910,-584.99414107,0.00010466,2]
[399476318,1766405432919,-584.99414107,0.00010466,2]
[399476319,1766405432928,-584.99414107,0.00010466,2]
[399476320,1766405432937,-594.02182844,0.00010466,2]
[399476321,1766405432946,-594.02182844,0.00010466,2]
[399476322,1766405432956,-594.02182844,0.00010466,2]
[399476323,1766405432966,-594.02182844,0.00010466,2]
[399476324,1766405432975,-594.02182844,0.00010466,2]
[399476325,1766405432985,-594.02182844,0.00010466,2]
[399476326,1766405432995,-172.624,0.00010466,2]
[399476327,1766405433004,-150.10933794,0.00010466,2]
[399476328,1766405433014,-154.89831663,0.00010484,2]
[399476329,1766405433023,-1041.66666667,0.00010516,2]
[399476330,1766405433033,-600.0,0.00010674,2]
[399476331,1766405433042,-150.0,0.00010746,2]
[399476332,1766405433051,-212.5407,0.00010902,2]
[399476333,1766405433061,-1130.4055958,0.00010902,2]
[399476334,1766405433090,-231.5944042,0.00010902,2]
[399476335,1766405433100,-178.09736889,0.00010902,2]
[399476342,1766405438599,-500.0,0.00010901,2]
[399476343,1766405438610,-500.0,0.00010901,2]
[399476344,1766405438619,-500.0,0.00010901,2]
[399476345,1766405438629,-500.0,0.00010901,2]
[399476346,1766405438639,-500.0,0.00010901,2]
[399476347,1766405438649,-500.0,0.00010901,2]
[399476348,1766405438659,-500.0,0.00010901,2]
[399476349,1766405438668,-500.0,0.00010901,2]
[399476350,1766405438682,-1981.90263111,0.00010902,2]
[399476351,1766405438692,-686.058,0.00010902,2]
[399476352,1766405438701,-210.5889909,0.00010935,2]
[399476353,1766405438711,-20000.0,0.00010957,2]
[399476354,1766405438722,-250.0,0.00010957,2]
[399476355,1766405438732,-553.64373807,0.00010957,2]
[399476356,1766405438742,-500.0,0.00010957,2]
[399476357,1766405438753,-500.0,0.00010957,2]
[399476358,1766405438764,-151.0,0.00010957,2]
[399476359,1766405438774,-250.0,0.00010957,2]
[399476360,1766405438784,-500.0,0.00010957,2]
[399476361,1766405438794,-500.0,0.00010957,2]
[399476362,1766405438803,-250.0,0.00010957,2]
[399476363,1766405438814,-500.0,0.00010957,2]
[399476364,1766405438823,-500.0,0.00010957,2]
[399476365,1766405438833,-250.0,0.00010957,2]
[399476366,1766405438843,-500.0,0.00010957,2]
[399476367,1766405438854,-500.0,0.00010957,2]
[399476368,1766405438864,-250.0,0.00010957,2]
[399476369,1766405438874,-250.0,0.00010957,2]
[399476370,1766405438884,-500.0,0.00010957,2]
[399476371,1766405438894,-500.0,0.00010957,2]
[399476372,1766405438904,-250.0,0.00010957,2]
[399476373,1766405438914,-250.0,0.00010957,2]
[399476374,1766405438923,-500.0,0.00010957,2]
[399476375,1766405438932,-250.0,0.00010957,2]
[399476376,1766405438942,-250.0,0.00010957,2]
[399476377,1766405438951,-500.0,0.00010957,2]
[399476378,1766405438961,-250.0,0.00010957,2]
[399476379,1766405438971,-250.0,0.00010957,2]
[399476380,1766405438981,-500.0,0.00010957,2]
[399476381,1766405438991,-356.68194293,0.00010957,2]
[399476382,1766405439002,-250.0,0.00010957,2]
[399476383,1766405439012,-500.0,0.00010957,2]
[399476384,1766405439022,-259.405612,0.00010957,2]
[399476385,1766405439032,-500.0,0.00010957,2]
[399476386,1766405439042,-500.0,0.00010957,2]
[399476387,1766405439052,-151.0,0.00010957,2]
[399476388,1766405439063,-151.0,0.00010957,2]
[399476389,1766405439073,-151.0,0.00010957,2]
[399476390,1766405439083,-151.0,0.00010957,2]
[399476391,1766405439093,-151.0,0.00010957,2]
[399476392,1766405439102,-151.0,0.00010957,2]
[399476393,1766405439113,-151.0,0.00010957,2]
[399476394,1766405439452,-151.0,0.00010957,2]
[399476395,1766405439477,-151.0,0.00010957,2]
[399476396,1766405439487,-151.0,0.00010957,2]
[399476397,1766405439497,-151.0,0.00010957,2]
[399476398,1766405439506,-201.93286099,0.00010957,2]
[399476399,1766405439516,-151.0,0.00010957,2]
[399476400,1766405439525,-151.0,0.00010957,2]
[399476401,1766405439535,-151.0,0.00010957,2]
[399476402,1766405439544,-291.42451166,0.00010957,2]
[399476403,1766405439554,-201.93286099,0.00010957,2]
[399476404,1766405439563,-250.0,0.00010957,2]
[399476405,1766405439573,-250.0,0.00010957,2]
[399476406,1766405439583,-1000.0,0.00010957,2]
[399476407,1766405439592,-662.59259356,0.00010957,2]
[399476408,1766405439601,-500.0,0.00010959,2]
[399476409,1766405439611,-482.77841272,0.00010959,2]
[399476410,1766405439621,-600.0,0.00011175,2]
[399476411,1766405439631,-420.0,0.00011505,2]
[399476412,1766405439640,-574.12855637,0.00011505,2]
[399476413,1766405439650,-151.0,0.00011505,2]
[399476414,1766405439659,-209.40437684,0.00011505,2]
[399476415,1766405439669,-480.0,0.00011506,2]
[399476416,1766405439680,-408.0,0.0001151,2]
[399476417,1766405439691,-595.37131296,0.00012053,2]
[399476418,1766405439701,-151.0,0.00012053,2]
[399476419,1766405439710,-217.15233878,0.00012053,2]
[399476420,1766405439719,-366.73812638,0.00012285,2]
[399476421,1766405439730,-720.0,0.00012293,2]
[399476422,1766405439740,-18623.65238142,0.00012326,2]
[399476423,1766405439749,-151.0,0.00012326,2]
[399476424,1766405439758,-224.62385463,0.00012326,2]
[399476425,1766405439770,-248.69938536,0.00012329,2]
[399476426,1766405439780,-284.22786898,0.00012329,2]
[399476427,1766405439789,-314.10749859,0.00012329,2]
[399476428,1766405439799,-565.39349745,0.00012329,2]
[399476429,1766405439808,-500.0,0.00012356,2]
[399476430,1766405439818,-1005.14399547,0.00012544,2]
[399476431,1766405439828,-704.00016692,0.00012601,2]
[399476432,1766405439837,-151.0,0.00012601,2]
[399476433,1766405439847,-256.77300773,0.00012601,2]
[399476434,1766405439857,-420.0,0.0001265,2]
[399476435,1766405439866,-244.18346703,0.00012699,3]
[399476436,1766405439875,-859.0,0.00012987,2]
[399476437,1766405439885,-859.0,0.00013007,2]
[399476438,1766405439894,-859.0,0.00013061,2]
[399476439,1766405439903,-859.0,0.00013131,2]
[399476440,1766405439912,-859.0,0.00013194,2]
[399476441,1766405439921,-2476.28697506,0.00013208,2]
[399476442,1766405439931,-150.70567677,0.00013215,2]
[399476443,1766405439940,-859.0,0.00013233,2]
[399476444,1766405439949,-859.0,0.00013234,2]
[399476445,1766405439959,-859.0,0.00013261,2]
[399476446,1766405439968,-500.0,0.00013273,2]
[399476447,1766405439978,-501.84929745,0.00013273,2]
[399476448,1766405439988,-500.0,0.00013273,2]
[399476449,1766405439997,-500.0,0.00013273,2]
[399476450,1766405440006,-500.0,0.00013273,2]
[399476451,1766405440015,-500.0,0.00013273,2]
[399476452,1766405440025,-399.77225955,0.00013273,2]
[399476453,1766405440035,-500.0,0.00013273,2]
[399476454,1766405440044,-500.0,0.00013273,2]
[399476455,1766405440053,-500.0,0.00013273,2]
[399476456,1766405440064,-859.0,0.00013286,2]
[399476457,1766405440073,-490.74761477,0.00013308,2]
[399476458,1766405440083,-859.0,0.00013338,2]
[399476459,1766405440093,-859.0,0.00013456,2]
[399476460,1766405440102,-859.0,0.00013461,2]
[399476461,1766405440112,-6137.3968709,0.00013487,2]
[399476462,1766405440121,-859.0,0.00013493,2]
[399476463,1766405440131,-859.0,0.00013516,2]
[399476464,1766405440142,-864.0,0.00013522,2]
[399476465,1766405440151,-855.67676079,0.00013543,3]
[399476466,1766405440160,-45951.55036206,0.0001358,2]
[399476467,1766405440173,-346.16352336,0.0001358,2]
[399476468,1766405440185,-4827.5805675,0.0001358,2]
[399476469,1766405440196,-3588.67918169,0.0001358,2]
[399476470,1766405440207,-2799.18313553,0.0001358,2]
[399476472,1766405440218,-4476.53,0.0001358,2]
[399476479,1766405440887,-484.86821652,0.00010901,2]
[399476480,1766405440910,-15.13178348,0.00010901,2]
[399476481,1766405440920,-500.0,0.00010901,2]
[399476482,1766405440929,-500.0,0.00010901,2]
[399476483,1766405440939,-500.0,0.00010901,2]
[399476484,1766405440948,-500.0,0.00010901,2]
[399476485,1766405440957,-500.0,0.00010901,2]
[399476486,1766405440967,-500.0,0.00010901,2]
[399476487,1766405440977,-228.60128088,0.00010901,2]
[399476501,1766405443763,-271.39871912,0.00010901,2]
[399476502,1766405443774,-500.0,0.00010901,2]